fUSD/lending_fUSD_20250609
["ID","MTS","AMOUNT","RATE_DAILY","PERIOD"]
[365140605,1749487841635,-960.6719944,0.0001933,2]
[365140606,1749487841647,-987.97649591,0.0001933,2]
[365140607,1749487841659,-762.67050846,0.0001933,2]
[365140608,1749487841984,-1314.8802207,0.0001933,2]
[365140609,1749487841996,-2410.285,0.0001933,2]
[365140610,1749487842008,-10828.25493752,0.0001933,2]
[365140611,1749487842217,-35122.78119645,0.0001933,2]
[365140612,1749487842227,-500.0,0.00019332,2]
[365140613,1749487842236,-500.0,0.00019332,2]
[365140614,1749487842246,-1177.54,0.00019332,2]
[365140615,1749487842257,-1177.54,0.00019332,2]
[365140616,1749487842271,-20849.0671543,0.00019333,2]
[365140617,1749487842282,-10624.9608751,0.00019333,2]
[365140618,1749487842292,-199984.5331097,0.00019333,2]
[365140619,1749487842301,-500.0,0.00019338,2]
[365140620,1749487842311,-500.0,0.00019341,2]
[365140621,1749487842321,-500.0,0.00019341,2]
[365140622,1749487842331,-1177.54,0.00019341,2]
[365140623,1749487842342,-500.0,0.00019341,2]
[365140624,1749487842353,-500.0,0.00019341,2]
[365140625,1749487842363,-200.0,0.00019342,2]
[365140626,1749487842372,-490.0,0.00019342,2]
[365140627,1749487842381,-490.0,0.00019342,2]
[365140628,1749487842391,-223.96255562,0.00019342,2]
[365140629,1749487842401,-490.0,0.00019342,2]
[365140630,1749487842411,-490.0,0.00019342,2]
[365140631,1749487842421,-490.0,0.00019342,2]
[365140632,1749487842431,-470.67816879,0.00019342,2]
[365140633,1749487842440,-385.40257588,0.00019342,2]
[365140634,1749487842450,-490.0,0.00019342,2]
[365140635,1749487842459,-490.0,0.00019342,2]
[365140636,1749487842469,-490.0,0.00019342,2]
[365140637,1749487842479,-490.0,0.00019342,2]
[365140638,1749487842488,-490.0,0.00019342,2]
[365140639,1749487842497,-490.0,0.00019342,2]
[365140640,1749487842507,-490.0,0.00019342,2]
[365140641,1749487842516,-577.38147213,0.00019342,2]
[365140642,1749487842526,-490.0,0.00019342,2]
[365140643,1749487842535,-490.0,0.00019342,2]
[365140644,1749487842545,-490.0,0.00019342,2]
[365140645,1749487842554,-490.0,0.00019342,2]
[365140646,1749487842565,-600.0831739,0.00019342,2]
[365140647,1749487842574,-490.65,0.00019342,2]
[365140648,1749487842584,-490.0,0.00019342,2]
[365140649,1749487842594,-490.0,0.00019342,2]
[365140650,1749487842603,-490.0,0.00019342,2]
[365140651,1749487842613,-490.0,0.00019342,2]
[365140652,1749487842623,-490.0,0.00019342,2]
[365140653,1749487842633,-490.0,0.00019342,2]
[365140654,1749487842643,-707.89,0.00019342,2]
[365140655,1749487842653,-186.170877,0.00019342,2]
[365140656,1749487842663,-490.0,0.00019342,2]
[365140657,1749487842672,-490.0,0.00019342,2]
[365140658,1749487842682,-670.96,0.00019342,2]
[365140659,1749487842692,-490.0,0.00019342,2]
[365140660,1749487842702,-510.09353612,0.00019342,2]
[365140661,1749487842712,-490.0,0.00019342,2]
[365140662,1749487842722,-490.0,0.00019342,2]
[365140663,1749487842731,-490.0,0.00019342,2]
[365140664,1749487842741,-605.18108307,0.00019342,2]
[365140665,1749487842751,-490.0,0.00019342,2]
[365140666,1749487842760,-490.0,0.00019342,2]
[365140667,1749487842771,-490.0,0.00019342,2]
[365140668,1749487842781,-490.0,0.00019342,2]
[365140669,1749487842791,-490.0,0.00019342,2]
[365140670,1749487842801,-200.0,0.00019342,2]
[365140671,1749487842811,-934.41,0.00019342,2]
[365140672,1749487842821,-1757.12,0.00019342,2]
[365140673,1749487842831,-490.0,0.00019342,2]
[365140674,1749487842840,-490.0,0.00019342,2]
[365140675,1749487842851,-954.26,0.00019342,2]
[365140676,1749487842860,-490.0,0.00019342,2]
[365140677,1749487842869,-1066.76,0.00019342,2]
[365140678,1749487842898,-639.77,0.00019342,2]
[365140679,1749487842907,-490.0,0.00019342,2]
[365140680,1749487842917,-490.0,0.00019342,2]
[365140681,1749487842927,-716.74,0.00019342,2]
[365140682,1749487842936,-490.0,0.00019342,2]
[365140683,1749487842946,-490.0,0.00019342,2]
[365140684,1749487842955,-490.0,0.00019342,2]
[365140685,1749487842965,-490.0,0.00019342,2]
[365140686,1749487842974,-672.82,0.00019342,2]
[365140687,1749487842984,-490.0,0.00019342,2]
[365140688,1749487842994,-490.0,0.00019342,2]
[365140689,1749487843005,-418.26239483,0.00019342,2]
[365140690,1749487843015,-593.06,0.00019342,2]
[365140691,1749487843025,-490.0,0.00019342,2]
[365140692,1749487843035,-1036.46,0.00019342,2]
[365140693,1749487843044,-490.0,0.00019342,2]
[365140694,1749487843054,-846.14,0.00019342,2]
[365140696,1749487843064,-490.0,0.00019342,2]
[365140697,1749487843075,-490.0,0.00019342,2]
[365140698,1749487843088,-490.0,0.00019342,2]
[365140699,1749487843100,-597.4,0.00019342,2]
[365140700,1749487843110,-490.0,0.00019342,2]
[365140701,1749487843119,-490.0,0.00019342,2]
[365140702,1749487843129,-490.0,0.00019342,2]
[365140703,1749487843139,-558.66,0.00019342,2]
[365140704,1749487843149,-490.0,0.00019342,2]
[365140705,1749487843160,-490.0,0.00019342,2]
[365140706,1749487843169,-490.0,0.00019342,2]
[365140707,1749487843180,-494.39,0.00019342,2]
[365140708,1749487843190,-506.61,0.00019342,2]
[365140711,1749487843200,-490.0,0.00019342,2]
[365140713,1749487843210,-668.62,0.00019342,2]
[365140715,1749487843220,-897.7,0.00019342,2]
[365140718,1749487843230,-490.0,0.00019342,2]
[365140720,1749487843239,-490.0,0.00019342,2]
[365140722,1749487843249,-490.0,0.00019342,2]
[365140724,1749487843259,-490.0,0.00019342,2]
[365140726,1749487843274,-490.0,0.00019342,2]
[365140729,1749487843284,-490.0,0.00019342,2]
[365140731,1749487843294,-490.0,0.00019342,2]
[365140733,1749487843304,-607.82,0.00019342,2]
[365140735,1749487843314,-1243.75,0.00019342,2]
[365140736,1749487843323,-622.40846868,0.00019342,2]
[365140737,1749487843333,-490.0,0.00019342,2]
[365140738,1749487843343,-490.0,0.00019342,2]
[365140739,1749487843354,-490.0,0.00019342,2]
[365140740,1749487843363,-624.65,0.00019342,2]
[365140741,1749487843373,-490.0,0.00019342,2]
[365140742,1749487843382,-490.0,0.00019342,2]
[365140743,1749487843392,-490.0,0.00019342,2]
[365140744,1749487843402,-490.0,0.00019342,2]
[365140745,1749487843412,-789.54,0.00019342,2]
[365140746,1749487843422,-490.0,0.00019342,2]
[365140747,1749487843432,-490.0,0.00019342,2]
[365140748,1749487843442,-490.0,0.00019342,2]
[365140749,1749487843452,-490.0,0.00019342,2]
[365140750,1749487843462,-490.0,0.00019342,2]
[365140751,1749487843471,-490.0,0.00019342,2]
[365140752,1749487843481,-490.0,0.00019342,2]
[365140753,1749487843491,-490.0,0.00019342,2]
[365140754,1749487843501,-521.38,0.00019342,2]
[365140755,1749487843510,-490.0,0.00019342,2]
[365140756,1749487843520,-490.0,0.00019342,2]
[365140757,1749487843530,-490.0,0.00019342,2]
[365140758,1749487843540,-490.0,0.00019342,2]
[365140759,1749487843550,-490.0,0.00019342,2]
[365140760,1749487843560,-490.0,0.00019342,2]
[365140761,1749487843570,-567.15,0.00019342,2]
[365140762,1749487843579,-665.86,0.00019342,2]
[365140763,1749487843589,-1188.09,0.00019342,2]
[365140764,1749487843599,-490.0,0.00019342,2]
[365140765,1749487843608,-566.55048237,0.00019342,2]
[365140766,1749487843618,-490.0,0.00019342,2]
[365140767,1749487843627,-490.0,0.00019342,2]
[365140768,1749487843637,-490.0,0.00019342,2]
[365140769,1749487843647,-1075.38,0.00019342,2]
[365140770,1749487843657,-490.0,0.00019342,2]
[365140771,1749487843666,-969.24,0.00019342,2]
[365140772,1749487843676,-490.0,0.00019342,2]
[365140773,1749487843686,-490.0,0.00019342,2]
[365140774,1749487843696,-490.0,0.00019342,2]
[365140775,1749487843705,-490.0,0.00019342,2]
[365140776,1749487843715,-591.43,0.00019342,2]
[365140777,1749487843725,-490.0,0.00019342,2]
[365140778,1749487843735,-1348.88,0.00019342,2]
[365140779,1749487843746,-490.0,0.00019342,2]
[365140781,1749487843757,-490.0,0.00019342,2]
[365140783,1749487843767,-1363.15,0.00019342,2]
[365140785,1749487843777,-490.0,0.00019342,2]
[365140788,1749487843787,-733.63,0.00019342,2]
[365140790,1749487843797,-621.13,0.00019342,2]
[365140792,1749487843807,-818.48,0.00019342,2]
[365140794,1749487843816,-1058.16,0.00019342,2]
[365140796,1749487843826,-490.0,0.00019342,2]
[365140798,1749487843836,-941.02,0.00019342,2]
[365140799,1749487843846,-490.0,0.00019342,2]
[365140800,1749487843856,-490.0,0.00019342,2]
[365140801,1749487843866,-490.0,0.00019342,2]
[365140802,1749487843875,-847.81,0.00019342,2]
[365140803,1749487843885,-609.44,0.00019342,2]
[365140804,1749487843895,-490.0,0.00019342,2]
[365140805,1749487843904,-522.99,0.00019342,2]
[365140806,1749487843914,-490.0,0.00019342,2]
[365140807,1749487843923,-490.0,0.00019342,2]
[365140808,1749487843933,-650.82,0.00019342,2]
[365140809,1749487843943,-490.0,0.00019342,2]
[365140810,1749487843952,-490.0,0.00019342,2]
[365140811,1749487843961,-1135.34,0.00019342,2]
[365140812,1749487843971,-490.0,0.00019342,2]
[365140813,1749487843980,-617.34,0.00019342,2]
[365140814,1749487843990,-503.58,0.00019342,2]
[365140815,1749487844000,-812.07,0.00019342,2]
[365140816,1749487844010,-232.80305285,0.00019342,2]
[365140817,1749487844021,-490.0,0.00019342,2]
[365140818,1749487844030,-490.0,0.00019342,2]
[365140819,1749487844040,-651.34,0.00019342,2]
[365140820,1749487844049,-614.27860205,0.00019342,2]
[365140821,1749487844059,-911.58,0.00019342,2]
[365140822,1749487844069,-490.0,0.00019342,2]
[365140823,1749487844079,-490.0,0.00019342,2]
[365140824,1749487844088,-490.0,0.00019342,2]
[365140825,1749487844098,-490.0,0.00019342,2]
[365140826,1749487844107,-490.0,0.00019342,2]
[365140827,1749487844117,-498.27,0.00019342,2]
[365140828,1749487844126,-692.6,0.00019342,2]
[365140829,1749487844135,-490.0,0.00019342,2]
[365140830,1749487844145,-490.0,0.00019342,2]
[365140831,1749487844155,-490.0,0.00019342,2]
[365140832,1749487844164,-748.05,0.00019342,2]
[365140833,1749487844174,-490.0,0.00019342,2]
[365140834,1749487844183,-1068.28,0.00019342,2]
[365140835,1749487844193,-551.55308384,0.00019342,2]
[365140836,1749487844202,-538.8,0.00019342,2]
[365140837,1749487844211,-928.69,0.00019342,2]
[365140838,1749487844221,-555.43,0.00019342,2]
[365140839,1749487844230,-490.0,0.00019342,2]
[365140840,1749487844239,-1282.95,0.00019342,2]
[365140841,1749487844250,-490.0,0.00019342,2]
[365140842,1749487844260,-723.05,0.00019342,2]
[365140843,1749487844272,-490.0,0.00019342,2]
[365140844,1749487844281,-490.0,0.00019342,2]
[365140845,1749487844291,-490.0,0.00019342,2]
[365140846,1749487844301,-1121.07,0.00019342,2]
[365140847,1749487844311,-532.4,0.00019342,2]
[365140848,1749487844320,-490.0,0.00019342,2]
[365140849,1749487844330,-203.65707478,0.00019342,2]
[365140850,1749487844340,-402.82610311,0.00019342,2]
[365140851,1749487844350,-200.0,0.00019342,2]
[365140852,1749487844359,-1423.32,0.00019342,2]
[365140853,1749487844368,-490.0,0.00019342,2]
[365140854,1749487844444,-179.64471147,0.00019342,2]
[365140855,1749487844456,-490.0,0.00019342,2]
[365140856,1749487844465,-490.0,0.00019342,2]
[365140857,1749487844475,-490.0,0.00019342,2]
[365140858,1749487844484,-180.11142663,0.00019342,2]
[365140859,1749487844494,-1300.84,0.00019342,2]
[365140860,1749487844503,-490.0,0.00019342,2]
[365140861,1749487844513,-490.0,0.00019342,2]
[365140862,1749487844522,-490.0,0.00019342,2]
[365140863,1749487844530,-671.73,0.00019342,2]
[365140864,1749487844539,-490.0,0.00019342,2]
[365140865,1749487844548,-656.63,0.00019342,2]
[365140866,1749487844558,-490.0,0.00019342,2]
[365140867,1749487844567,-490.0,0.00019342,2]
[365140868,1749487844576,-490.0,0.00019342,2]
[365140869,1749487844586,-533.95,0.00019342,2]
[365140870,1749487844595,-490.0,0.00019342,2]
[365140871,1749487844605,-333.59364812,0.00019342,2]
[365140872,1749487844615,-640.01,0.00019342,2]
[365140873,1749487844625,-732.82,0.00019342,2]
[365140874,1749487844634,-490.0,0.00019342,2]
[365140875,1749487844643,-490.0,0.00019342,2]
[365140876,1749487844653,-1415.37,0.00019342,2]
[365140877,1749487844663,-729.43,0.00019342,2]
[365140878,1749487844673,-1000.0,0.00019342,2]
[365140879,1749487844683,-490.0,0.00019342,2]
[365140880,1749487844693,-490.0,0.00019342,2]
[365140881,1749487844703,-598.09,0.00019342,2]
[365140882,1749487844713,-384.15702106,0.00019342,2]
[365140883,1749487844723,-490.0,0.00019342,2]
[365140884,1749487844733,-490.0,0.00019342,2]
[365140885,1749487844743,-490.0,0.00019342,2]
[365140886,1749487844753,-490.0,0.00019342,2]
[365140887,1749487844762,-839.7,0.00019342,2]
[365140888,1749487844771,-704.85,0.00019342,2]
[365140889,1749487844780,-490.0,0.00019342,2]
[365140890,1749487844790,-250.0,0.00019342,2]
[365140891,1749487844799,-490.0,0.00019342,2]
[365140892,1749487844808,-490.0,0.00019342,2]
[365140893,1749487844817,-490.0,0.00019342,2]
[365140894,1749487844827,-24473.91738386,0.00019342,2]
[365140895,1749487844836,-490.0,0.00019342,2]
[365140896,1749487844846,-620.69,0.00019342,2]
[365140897,1749487844855,-993.41,0.00019342,2]
[365140898,1749487844864,-490.0,0.00019342,2]
[365140899,1749487844874,-238.51883787,0.00019342,2]
[365140900,1749487844883,-1444.2,0.00019342,2]
[365140901,1749487844892,-490.0,0.00019342,2]
[365140902,1749487844901,-490.0,0.00019342,2]
[365140903,1749487844910,-490.0,0.00019342,2]
[365140904,1749487844919,-490.0,0.00019342,2]
[365140905,1749487844929,-490.0,0.00019342,2]
[365140906,1749487844938,-490.0,0.00019342,2]
[365140907,1749487844947,-2791.19,0.00019342,2]
[365140908,1749487844956,-491.34,0.00019342,2]
[365140909,1749487844966,-490.0,0.00019342,2]
[365140910,1749487844975,-490.0,0.00019342,2]
[365140911,1749487844985,-1605.61,0.00019342,2]
[365140912,1749487844995,-490.0,0.00019342,2]
[365140913,1749487845005,-490.0,0.00019342,2]
[365140914,1749487845015,-2626.8,0.00019342,2]
[365140915,1749487845024,-3550.06,0.00019342,2]
[365140916,1749487845036,-490.0,0.00019342,2]
[365140917,1749487845045,-1178.67,0.00019342,2]
[365140918,1749487845055,-490.0,0.00019342,2]
[365140919,1749487845065,-490.0,0.00019342,2]
[365140920,1749487845078,-490.0,0.00019342,2]
[365140921,1749487845088,-952.56,0.00019342,2]
[365140922,1749487845098,-642.4,0.00019342,2]
[365140923,1749487845107,-490.0,0.00019342,2]
[365140924,1749487845116,-490.0,0.00019342,2]
[365140925,1749487845125,-1295.86,0.00019342,2]
[365140926,1749487845134,-698.24,0.00019342,2]
[365140927,1749487845144,-1478.09,0.00019342,2]
[365140928,1749487845154,-785.9,0.00019342,2]
[365140929,1749487845163,-490.0,0.00019342,2]
[365140930,1749487845172,-490.0,0.00019342,2]
[365140931,1749487845182,-622.39,0.00019342,2]
[365140932,1749487845191,-490.0,0.00019342,2]
[365140933,1749487845200,-789.25,0.00019342,2]
[365140934,1749487845209,-490.0,0.00019342,2]
[365140935,1749487845219,-1977.83,0.00019342,2]
[365140936,1749487845228,-1565.29,0.00019342,2]
[365140937,1749487845238,-1355.88,0.00019342,2]
[365140938,1749487845247,-756.8,0.00019342,2]
[365140939,1749487845259,-490.0,0.00019342,2]
[365140940,1749487845270,-490.0,0.00019342,2]
[365140941,1749487845279,-848.82,0.00019342,2]
[365140942,1749487845290,-493.61,0.00019342,2]
[365140943,1749487845300,-2704.9,0.00019342,2]
[365140944,1749487845310,-490.0,0.00019342,2]
[365140945,1749487845319,-490.0,0.00019342,2]
[365140946,1749487845329,-934.91,0.00019342,2]
[365140947,1749487845339,-490.0,0.00019342,2]
[365140948,1749487845349,-490.0,0.00019342,2]
[365140949,1749487845358,-490.0,0.00019342,2]
[365140950,1749487845367,-611.69,0.00019342,2]
[365140951,1749487845376,-735.4,0.00019342,2]
[365140952,1749487845386,-1000.0,0.00019342,2]
[365140953,1749487845395,-401.98246864,0.00019342,2]
[365140954,1749487845403,-1105.8,0.00019342,2]
[365140955,1749487845412,-490.0,0.00019342,2]
[365140956,1749487845422,-565.16,0.00019342,2]
[365140957,1749487845431,-641.98,0.00019342,2]
[365140958,1749487845440,-490.0,0.00019342,2]
[365140959,1749487845449,-672.31,0.00019342,2]
[365140960,1749487845458,-892.63,0.00019342,2]
[365140961,1749487845467,-1221.93,0.00019342,2]
[365140962,1749487845476,-1986.53,0.00019342,2]
[365140963,1749487845485,-490.0,0.00019342,2]
[365140964,1749487845494,-490.0,0.00019342,2]
[365140965,1749487845503,-1239.54,0.00019342,2]
[365140966,1749487845513,-1140.71,0.00019342,2]
[365140967,1749487845522,-490.0,0.00019342,2]
[365140968,1749487845532,-1477.98,0.00019342,2]
[365140969,1749487845541,-490.0,0.00019342,2]
[365140970,1749487845550,-490.0,0.00019342,2]
[365140971,1749487845559,-2326.08,0.00019342,2]
[365140972,1749487845569,-678.33,0.00019342,2]
[365140973,1749487845578,-757.71,0.00019342,2]
[365140974,1749487845588,-490.0,0.00019342,2]
[365140975,1749487845598,-636.31,0.00019342,2]
[365140976,1749487845607,-490.0,0.00019342,2]
[365140977,1749487845617,-1191.16,0.00019342,2]
[365140978,1749487845626,-715.61,0.00019342,2]
[365140979,1749487845635,-524.52,0.00019342,2]
[365140980,1749487845646,-18182.36,0.00019342,2]
[365140981,1749487845656,-541.26,0.00019342,2]
[365140982,1749487845665,-490.0,0.00019342,2]
[365140983,1749487845675,-490.0,0.00019342,2]
[365140984,1749487845685,-1700.0,0.00019342,2]
[365140985,1749487845694,-982.83,0.00019342,2]
[365140986,1749487845703,-4639.21,0.00019342,2]
[365140987,1749487845712,-1938.54,0.00019342,2]
[365140988,1749487845722,-490.0,0.00019342,2]
[365140989,1749487845731,-2755.1,0.00019342,2]
[365140990,1749487845740,-490.0,0.00019342,2]
[365140991,1749487845749,-490.0,0.00019342,2]
[365140992,1749487845758,-490.0,0.00019342,2]
[365140993,1749487845767,-4062.2,0.00019342,2]
[365140994,1749487845776,-842.7,0.00019342,2]
[365140995,1749487845787,-490.0,0.00019342,2]
[365140996,1749487845796,-672.84,0.00019342,2]
[365140997,1749487845806,-1090.59,0.00019342,2]
[365140998,1749487845816,-1048.52,0.00019342,2]
[365140999,1749487845825,-940.23,0.00019342,2]
[365141000,1749487845834,-490.0,0.00019342,2]
[365141001,1749487845844,-490.0,0.00019342,2]
[365141002,1749487845853,-490.0,0.00019342,2]
[365141003,1749487845863,-490.0,0.00019342,2]
[365141004,1749487845872,-697.18,0.00019342,2]
[365141005,1749487845881,-490.0,0.00019342,2]
[365141006,1749487845891,-1201.35,0.00019342,2]
[365141007,1749487845900,-490.0,0.00019342,2]
[365141008,1749487845910,-824.88,0.00019342,2]
[365141009,1749487845919,-1037.76,0.00019342,2]
[365141010,1749487845929,-910.1,0.00019342,2]
[365141011,1749487845939,-916.58,0.00019342,2]
[365141012,1749487845948,-490.0,0.00019342,2]
[365141013,1749487845958,-490.0,0.00019342,2]
[365141014,1749487845967,-490.0,0.00019342,2]
[365141015,1749487845976,-490.0,0.00019342,2]
[365141016,1749487845985,-490.0,0.00019342,2]
[365141017,1749487845996,-545.06,0.00019342,2]
[365141018,1749487846011,-682.52,0.00019342,2]
[365141020,1749487846020,-506.6,0.00019342,2]
[365141021,1749487846029,-490.0,0.00019342,2]
[365141022,1749487846039,-490.0,0.00019342,2]
[365141023,1749487846049,-990.75,0.00019342,2]
[365141024,1749487846058,-490.0,0.00019342,2]
[365141025,1749487846068,-490.0,0.00019342,2]
[365141026,1749487846077,-5410.88,0.00019342,2]
[365141027,1749487846087,-490.0,0.00019342,2]
[365141028,1749487846096,-629.06,0.00019342,2]
[365141030,1749487846106,-521.49,0.00019342,2]
[365141031,1749487846115,-490.0,0.00019342,2]
[365141032,1749487846124,-490.0,0.00019342,2]
[365141033,1749487846134,-1201.85,0.00019342,2]
[365141034,1749487846143,-844.65,0.00019342,2]
[365141035,1749487846152,-792.96,0.00019342,2]
[365141036,1749487846162,-631.59,0.00019342,2]
[365141037,1749487846171,-596.16,0.00019342,2]
[365141038,1749487846180,-865.54,0.00019342,2]
[365141039,1749487846190,-490.0,0.00019342,2]
[365141040,1749487846199,-1227.21,0.00019342,2]
[365141041,1749487846208,-1406.6,0.00019342,2]
[365141042,1749487846218,-490.0,0.00019342,2]
[365141043,1749487846227,-850.24,0.00019342,2]
[365141044,1749487846237,-726.4,0.00019342,2]
[365141045,1749487846246,-490.0,0.00019342,2]
[365141046,1749487846257,-490.0,0.00019342,2]
[365141047,1749487846269,-223.21531887,0.00019342,2]
[365141048,1749487846279,-490.0,0.00019342,2]
[365141050,1749487846289,-1532.79,0.00019342,2]
[365141051,1749487846299,-2307.85,0.00019342,2]
[365141052,1749487846309,-490.0,0.00019342,2]
[365141053,1749487846319,-1067.44,0.00019342,2]
[365141054,1749487846328,-1753.58,0.00019342,2]
[365141055,1749487846338,-490.0,0.00019342,2]
[365141056,1749487846348,-490.0,0.00019342,2]
[365141057,1749487846358,-1116.89,0.00019342,2]
[365141058,1749487846367,-837.93,0.00019342,2]
[365141059,1749487846377,-490.0,0.00019342,2]
[365141060,1749487846386,-490.0,0.00019342,2]
[365141061,1749487846395,-490.0,0.00019342,2]
[365141062,1749487846405,-580.63,0.00019342,2]
[365141063,1749487846415,-490.0,0.00019342,2]
[365141064,1749487846424,-490.0,0.00019342,2]
[365141065,1749487846433,-523.77,0.00019342,2]
[365141066,1749487846442,-825.38,0.00019342,2]
[365141067,1749487846451,-490.0,0.00019342,2]
[365141068,1749487846460,-490.0,0.00019342,2]
[365141069,1749487846469,-490.0,0.00019342,2]
[365141070,1749487846478,-765.62,0.00019342,2]
[365141071,1749487846487,-490.0,0.00019342,2]
[365141072,1749487846497,-1175.63,0.00019342,2]
[365141073,1749487846506,-510.28,0.00019342,2]
[365141074,1749487846515,-490.0,0.00019342,2]
[365141075,1749487846525,-769.86,0.00019342,2]
[365141076,1749487846535,-490.0,0.00019342,2]
[365141077,1749487846544,-2480.74,0.00019342,2]
[365141078,1749487846554,-516.58,0.00019342,2]
[365141079,1749487846562,-524.45,0.00019342,2]
[365141080,1749487846572,-578.38,0.00019342,2]
[365141081,1749487846581,-490.0,0.00019342,2]
[365141082,1749487846590,-1151.99,0.00019342,2]
[365141083,1749487846600,-502.36,0.00019342,2]
[365141084,1749487846609,-1275.49,0.00019342,2]
[365141086,1749487846619,-491.66,0.00019342,2]
[365141087,1749487846629,-490.0,0.00019342,2]
[365141088,1749487846638,-498.78,0.00019342,2]
[365141089,1749487846647,-490.0,0.00019342,2]
[365141090,1749487846657,-490.0,0.00019342,2]
[365141091,1749487846666,-980.88,0.00019342,2]
[365141092,1749487846676,-490.0,0.00019342,2]
[365141093,1749487846686,-490.0,0.00019342,2]
[365141094,1749487846696,-1073.76,0.00019342,2]
[365141095,1749487846706,-1059.25,0.00019342,2]
[365141096,1749487846715,-490.0,0.00019342,2]
[365141097,1749487846725,-490.0,0.00019342,2]
[365141098,1749487846735,-490.0,0.00019342,2]
[365141099,1749487846744,-490.0,0.00019342,2]
[365141100,1749487846754,-2455.01,0.00019342,2]
[365141101,1749487846764,-1625.64,0.00019342,2]
[365141102,1749487846774,-3389.12,0.00019342,2]
[365141103,1749487846783,-560.01,0.00019342,2]
[365141104,1749487846792,-1865.88,0.00019342,2]
[365141105,1749487846802,-1841.52,0.00019342,2]
[365141106,1749487846811,-490.0,0.00019342,2]
[365141108,1749487846820,-1839.6,0.00019342,2]
[365141109,1749487846829,-490.0,0.00019342,2]
[365141110,1749487846839,-490.0,0.00019342,2]
[365141111,1749487846848,-1173.83,0.00019342,2]
[365141112,1749487846858,-1451.81,0.00019342,2]
[365141113,1749487846867,-590.07,0.00019342,2]
[365141115,1749487846877,-1185.85,0.00019342,2]
[365141117,1749487846886,-408.20520552,0.00019342,2]
[365141119,1749487846895,-490.0,0.00019342,2]
[365141121,1749487846905,-490.0,0.00019342,2]
[365141123,1749487846915,-1498.43,0.00019342,2]
[365141125,1749487846924,-573.78,0.00019342,2]
[365141127,1749487846933,-490.0,0.00019342,2]
[365141129,1749487846943,-490.0,0.00019342,2]
[365141131,1749487846951,-490.0,0.00019342,2]
[365141133,1749487846961,-490.0,0.00019342,2]
[365141135,1749487846970,-513.8,0.00019342,2]
[365141137,1749487846979,-490.0,0.00019342,2]
[365141139,1749487846988,-1974.73,0.00019342,2]
[365141141,1749487846997,-490.0,0.00019342,2]
[365141143,1749487847006,-490.0,0.00019342,2]
[365141145,1749487847015,-790.2,0.00019342,2]
[365141147,1749487847025,-1563.74,0.00019342,2]
[365141149,1749487847034,-154.51,0.00019342,2]
[365141151,1749487847043,-176.280312,0.00019342,2]
[365141153,1749487847053,-500.0,0.00019345,2]
[365141155,1749487847063,-1177.54,0.00019345,2]
[365141157,1749487847072,-500.0,0.00019345,2]